Cogmind - Beta 13 @@@ ROGUE MODE // 2024.04.25 @ 18:07:19 Player: luckinvolved Result: Destroyed by AL-4RF(R) with Subdweller Beam Cannon Performance ------------- Evolutions (0) 0 Regions Visited (2) 400 Robots Destroyed (32) 160 Value Destroyed (802) 802 Prototype IDs (0) 0 Alien Tech Used (0) 0 Bonus (0) 0 TOTAL SCORE: 1362 Bonus ------- None Cogmind --------- Core Integrity 0/250 Matter 159/300 Energy 85/100 System Corruption 2% Temperature Cool (27) Movement Treading (160) Location -10/Subcaves Parts ------- > --- POWER (1) -------- (None) > --- PROPULSION (2) --- Spiked Treads Spiked Treads > --- UTILITY (2) ------ Scrap Shield > --- WEAPON (2) ------- Particle Gun Subdweller Beam Cannon > --- INVENTORY (5) ---- High-capacity Matter Pod (200) Beam Rifle Assault Rifle Assault Rifle Enhanced Flamer Peak State ------------ > --- POWER ------------ Subdweller Power Source > --- PROPULSION ------- Subdweller Monowheel Subdweller Monowheel > --- UTILITY ---------- Scrap Shield > --- WEAPON ----------- Particle Gun Subdweller Beam Cannon > --- INVENTORY -------- High-capacity Matter Pod Assault Rifle Assault Rifle Subdweller Shrapnel Launcher Enhanced Flamer [Rating: 14] Favorites ----------- Power Ion Engine Engine Ion Engine Propulsion Light Treads Treads Light Treads Wheel Subdweller Monowheel Flight Unit Makeshift Flight Unit Utility Large Storage Unit Device Subdweller Optics Storage Large Storage Unit Processor Signal Interpreter Protection Scrap Shield Weapon Assault Rifle Energy Gun Particle Gun Energy Cannon Beam Cannon Ballistic Gun Assault Rifle Launcher Subdweller Shrapnel Launcher Build | -11 -10 -10 ------- Run | Yrd Mat Sub Slots Evolved . | . . . Power . | . . . Propulsion . | . . . Utility . | . . . Weapon . | . . . Parts Attached 37 | 6 5 26 Power 3 | 1 . 2 Engine 3 | 1 . 2 Core . | . . . Reactor . | . . . Propulsion 14 | 2 1 11 Treads 8 | 2 1 5 Leg . | . . . Wheel 5 | . . 5 Hover . | . . . Flight 1 | . . 1 Utility 9 | 1 3 5 Device 1 | . . 1 Storage 2 | 1 1 . Processor 1 | . 1 . Hackware . | . . . Protection 5 | . 1 4 Artifact . | . . . Weapon 11 | 2 1 8 Energy Gun 2 | . . 2 Energy Cannon 3 | . . 3 Ballistic Gun 5 | 2 1 2 Ballistic Cannon . | . . . Launcher 1 | . . 1 Special Weapon . | . . . Impact Weapon . | . . . Slashing Weapon . | . . . Piercing Weapon . | . . . Special Melee Weapon . | . . . Unidentified Prototypes . | . . . Parts Lost 11 | . . 11 Power 2 | . . 2 Propulsion 5 | . . 5 Utility 1 | . . 1 Weapon 3 | . . 3 Highest Loss Streak 3 | . . 3 To Critical Strikes . | . . . Average Slot Usage (%) 80 | . 94 71 Engine 11 | . 14 10 Treads 18 | . 27 11 Wheel 1 | . . 2 Flight 1 | . . 2 Storage 9 | . 14 6 Processor 1 | . 2 . Protection 7 | . 7 7 Energy Gun 2 | . . 4 Energy Cannon 10 | . . 17 Ballistic Gun 12 | . 28 2 Launcher 1 | . . 2 Naked Turns . | . . . Heaviest Build 39 | 13 32 39 Greatest Support 40 | 40 40 40 Greatest Overweight (x) 10 | . . 10 Average Overweight (x) . | . . 1 Largest Inventory Capacity 15 | 8 15 15 Average Capacity 9 | 7 9 9 Most Carried 15 | 3 14 15 Average Carried 8 | 1 7 8 Final Capacity 15 | 8 15 5 Final Carried 13 | 2 13 5 Class Distribution -------------------- 69% | Mutant 22% | Subdweller-Mutant 8% | Derelict-Mutant Dominant Class ---------------- Mutant | -10/Materials Mutant | -10/Subcaves Resources | -11 -10 -10 ----------- Run | Yrd Mat Sub Matter Collected 1190 | 260 456 474 Remotely . | . . . Salvage Created 964 | . 472 492 Parts 58 | . 40 18 Haulers Intercepted 1 | . 1 . Recyclers Shooed . | . . . Parts Field Recycled . | . . . Retrieved Matter . | . . . Parts Self-Destructed 8 | . . 8 Prevented . | . . . Kills | -11 -10 -10 ------- Run | Yrd Mat Sub Combat Hostiles Destroyed 26 | . 13 13 Guns 16 | . 13 3 Cannons 8 | . . 8 AOE 2 | . . 2 Classes Destroyed 8 | . 6 2 Builder 3 | . 3 . Hauler 1 | . 1 . Operator 1 | . 1 . Watcher 1 | . 1 . Swarmer 9 | . 9 . Grunt 8 | . 4 4 Sentry 1 | . . 1 Subdweller 8 | . . 8 Best Kill Streak 4 | . 4 3 Combat Bots Only 4 | . 4 3 Max Kills in Single Turn 1 | . 1 1 Gunslinging . | . . . Exploded 1 | . . 1 Melee . | . . . Uniques/NPCs Destroyed . | . . . Combat | -11 -10 -10 -------- Run | Yrd Mat Sub Hostile Shots Fired 154 | . 72 82 Missed 46 | . 25 21 Damage Taken 1719 | . 417 1302 Core 254 | . 40 214 Absorbed by Shields . | . . . Core Remaining (%) 100 | 100 . . Volleys Fired 107 | . 62 45 Largest 2 | . 2 2 Hottest 145 | . 40 145 Shots Fired 212 | . 125 87 Gun 156 | . 125 31 Cannon 49 | . . 49 Launcher 7 | . . 7 Special . | . . . Kinetic 157 | . 125 32 Thermal 55 | . . 55 Explosive . | . . . Electromagnetic . | . . . Robot Hit Streak 18 | . 9 18 Robot Miss Streak 4 | . 4 2 Penetration Max . | . . . Secondary Targets 1 | . 1 . Max Gunslinging Chain 1 | . 1 . Shots Hit Robots 132 | . 64 68 Core Hits 49 | . 26 23 Critical Kills . | . . . Critical Parts Destroyed . | . . . Critical Strikes . | . . . Melee Attacks . | . . . Impact . | . . . Slashing . | . . . Piercing . | . . . Sneak Attacks . | . . . Combat Hostiles . | . . . Follow-up Attacks . | . . . Damage Inflicted 2195 | . 728 1467 Guns 1080 | . 728 352 Cannons 744 | . . 744 Explosions 371 | . . 371 Melee . | . . . Ramming . | . . . Kinetic 1377 | . 728 649 Thermal 818 | . . 818 Explosive . | . . . Electromagnetic . | . . . Impact . | . . . Slashing . | . . . Piercing . | . . . Highest Corruption 2 | . 2 2 Average Corruption 2 | . 2 2 Corruption Purged . | . . . Corruption Blocked . | . . . Effects 50 | . 19 31 Message Errors 9 | . 1 8 Matter Fused 17 | . 8 9 Heat Flow Errors 7 | . 1 6 Energy Discharges 4 | . 3 1 Parts Fused 1 | . 1 . Data Loss (minor) 6 | . 3 3 Data Loss (major) 4 | . 1 3 Misfires 1 | . 1 . Alerts 1 | . . 1 Overload Shots . | . . . Overflow Damage . | . . . Projectiles . | . . . Explosions . | . . . Melee . | . . . Knockbacks . | . . . Impact . | . . . Kinetic . | . . . Secondary . | . . . Self-Inflicted Damage . | . . . Shots . | . . . Rammed . | . . . Targets Rammed . | . . . Kicked . | . . . Crushed . | . . . Highest Temperature 195 | . 127 195 Average Temperature 25 | . 10 36 Received Heat Transfer 525 | . 90 435 Siege Activations . | . . . Robots Corrupted . | . . . Combat Hostiles . | . . . Parts Fried . | . . . Impact Corruptions . | . . . Robots Melted . | . . . Combat Hostiles . | . . . Parts Melted 6 | . . 6 Heat Transferred 1517 | . . 1517 Parts Sabotaged . | . . . Parts Stolen . | . . . Parts Stripped . | . . . Power Chain Reactions . | . . . Alert | -11 -10 -10 ------- Run | Yrd Mat Sub Peak Influence 227 | . 227 . Initial . | . . . Average 70 | . 75 . Maximum Alert Level 1 | . 1 . Low Security (%) 98 | 100 98 . Level 1 1 | . 1 . Level 2 . | . . . Level 3 . | . . . Level 4 . | . . . Level 5 . | . . . High Security . | . . . Max Security . | . . . Squads Dispatched 2 | . 2 . Investigation . | . . . Extermination . | . . . Reinforcement 2 | . 2 . Assault . | . . . Garrison . | . . . Intercept . | . . . Searches Triggered . | . . . Construction Impeded . | . . . Haulers Reinforced . | . . . Active Scanning Responses . | . . . Cargo Convoy Interrupts . | . . . Stealth | -11 -10 -10 --------- Run | Yrd Mat Sub Distress Signals 1 | . 1 . Communications Jammed . | . . . Distress Signals . | . . . Times Spotted 43 | . 28 15 Peak Tracking Total 4 | . 4 3 Tactical Retreats 1 | . 1 . Traps | -11 -10 -10 ------- Run | Yrd Mat Sub Traps Triggered 3 | . 2 1 Indirectly . | . . . Trap Hack Attempts . | . . . Triggered . | . . . Disarmed . | . . . Reprogrammed . | . . . Reused . | . . . Traps Extracted . | . . . Installed . | . . . Triggered . | . . . Machines | -11 -10 -10 ---------- Run | Yrd Mat Sub Machines Disabled . | . . . Max in Single Turn . | . . . Machines Repaired . | . . . Machines Dismantled . | . . . Machines Sabotaged . | . . . Overloaded Fab Kills . | . . . Hacking | -11 -10 -10 --------- Run | Yrd Mat Sub Machines Accessed 1 | . . 1 Terminals . | . . . Fabricators . | . . . Repair Stations . | . . . Recycling Units . | . . . Scanalyzers . | . . . Garrison Access . | . . . Total Hacks 2 | . . 2 Successful 2 | . . 2 Failed . | . . . Catastrophic . | . . . Database Lockouts . | . . . Manual . | . . . Terminals . | . . . Fabricators . | . . . Repair Stations . | . . . Recycling Units . | . . . Scanalyzers . | . . . Garrison Access . | . . . Terminal Hacks 2 | . . 2 Record 2 | . . 2 Fabricator Hacks . | . . . Repair Station Hacks . | . . . Recycling Unit Hacks . | . . . Scanalyzer . | . . . Garrison Access Hacks . | . . . Unauthorized Hacks . | . . . Terminals . | . . . Fabricators . | . . . Repair Stations . | . . . Recycling Units . | . . . Scanalyzers . | . . . Garrison Access . | . . . Data Cores Recovered . | . . . Used . | . . . Hacking Detections . | . . . Full Trace Events . | . . . Feedback Events . | . . . Feedback Blocked . | . . . Robot Schematics Acquired . | . . . Robots Built . | . . . Authchips . | . . . Time . | . . . Total Robot Build Rating . | . . . Part Schematics Acquired . | . . . Parts Built . | . . . Authchips . | . . . Time . | . . . Total Part Build Rating . | . . . Parts Repaired . | . . . Time . | . . . Parts Recycled . | . . . Recycled Matter . | . . . Retrieved Matter . | . . . Retrieved Components . | . . . Parts Scanalyzed . | . . . Part Schematics Acquired . | . . . Parts Damaged . | . . . Bothacking | -11 -10 -10 ------------ Run | Yrd Mat Sub Used RIF Installer . | . . . Robots Hacked . | . . . Non-combat . | . . . Combat . | . . . Robot Hacks Applied . | . . . Relay Couplers Released . | . . . Fabnet Peak Effective % . | . . . Robots Rewired . | . . . Allies Hacked . | . . . Hacks Repelled . | . . . Allies | -11 -10 -10 -------- Run | Yrd Mat Sub Total Allies . | . . . Largest Group . | . . . Highest-Rated Group . | . . . Highest-Rated Ally . | . . . Total Orders . | . . . Ally Attacks . | . . . Total Damage . | . . . Kills . | . . . Allies Corrupted . | . . . Allies Melted . | . . . Intel | -11 -10 -10 ------- Run | Yrd Mat Sub Robot Analysis Total . | . . . Derelict Logs Recovered 1 | . . 1 Drone Launches . | . . . Drone Recoveries . | . . . Exploration | -11 -10 -10 ------------- Run | Yrd Mat Sub Turns Passed 4364 | 113 1683 2568 Spaces Moved 1789 | 72 618 1099 Core 54 | 20 . 34 Treads 1352 | 52 618 682 Legs . | . . . Wheels 227 | . . 227 Hover . | . . . Flight 156 | . . 156 Fastest Speed 50 | 50 160 110 Average Speed 192 | 129 160 214 Slowest Speed 550 | 160 160 550 Overloaded Moves . | . . . Propulsion Burnouts . | . . . Robots Hopped . | . . . Cave-ins Triggered . | . . . Exploration Rate (%) 45 | 4 78 55 Regions Visited 2 Branch Regions 1 Pre-discovered Areas . | . . . Known Exits Taken 1 | . 1 . Unknown Exits Taken 1 | 1 . . Scrap Searched 11 | . . 11 Spaces Dug . | . . . Terrain Destroyed 69 | . . 69 Melee . | . . . Projectile 1 | . . 1 AOE 68 | . . 68 Terrain Rammed . | . . . Walls Destroyed . | . . . Machines Disabled . | . . . Actions | -11 -10 -10 --------- Run | Yrd Mat Sub Total 2511 | 89 1201 1221 Wait 528 | 9 497 22 Move 1787 | 71 617 1099 Hop . | . . . Pick Up 29 | 3 14 12 Fast Attach 21 | 5 3 13 Attach 10 | 1 1 8 Detach 1 | . 1 . Swap 6 | . 1 5 Drop 19 | . 5 14 Fire 107 | . 62 45 Melee . | . . . Ram . | . . . Kick . | . . . Crush . | . . . Escape Stasis . | . . . Rewire . | . . . Trap . | . . . Miscellaneous 3 | . . 3 Route ------- -11/Scrapyard -10/Materials (discovered 6 exits: [*Mat x3] / [*Min x2] / *Sub) -10/Subcaves History --------- Turn | Location | Event 2 | -11/Scrapyard | Met Revision 17 3 | -11/Scrapyard | Discovered new exit (range 15) 114 | -11/Scrapyard | Entered Materials 305 | -10/Materials | Build established: Mutant 346 | -10/Materials | Discovered new exit (range 12) 448 | -10/Materials | Discovered new exit (range 16) 586 | -10/Materials | Discovered new exit (range 16) 848 | -10/Materials | Discovered new exit (range 11) 1255 | -10/Materials | Discovered new exit (range 6) 1770 | -10/Materials | Discovered new exit (range 7) 1795 | -10/Materials | Identified exit to Subcaves 1797 | -10/Materials | Entered Subcaves 2018 | -10/Subcaves | Learned Materials emergency access door positions 2118 | -10/Subcaves | Visited Clippyterm 2934 | -10/Subcaves | Core integrity fell below 50% 2997 | -10/Subcaves | Lost 3 parts (1p2w) 3104 | -10/Subcaves | A swath of the cavern ceiling suddenly collapsed 3475 | -10/Subcaves | Build established: Subdweller-Mutant 3672 | -10/Subcaves | Ambushed by Subdweller buried in earth 3674 | -10/Subcaves | Core integrity fell below 20% 3836 | -10/Subcaves | Shifting Twisted Machinery released Sub. Laser 3839 | -10/Subcaves | Shifting Twisted Machinery released Spk. Treads 4365 | -10/Subcaves | Destroyed by AL-4RF(R) with Subdweller Beam Cannon Last Messages --------------- 03803_ System corrupted: Matter fused (-5). Sub. Laser falls loose from the Twisted Machinery. Spk. Treads falls loose from the Twisted Machinery. 03847_ Dropped Sub. Monowheel. 03848_ Acquired Spk. Treads. 03922_ System corrupted: Component data lost. 03976_ Sub. Power Source shoots sparks and powers down. 03977_ Dropped Broken Sub. Power Source. 04006_ System corrupted: Matter fused (-6). 04029_ System corrupted: Matter fused (-8). 04037_ Acquired Spk. Treads. 04081_ I7H,6ST#SFTZ#GPLKS%EV 04139_ Sub. Shrapnel Launcher shoots sparks and powers down. 04141_ Dropped Broken Sub. Shrapnel Launcher. 04215_ Heat Sink melted. 04215_ Y-45 Defender destroyed. 04218_ Acquired 58 matter. 04221_ Acquired Beam Rifle. 04226_ Lgt. Armor Plating fries itself beyond repair. 04270_ Acquired 12 matter. Map ----- +----------------------------------------------------+ | ## ### #????????????????????????????? | | ### #????????????????????????????? | | #?## #????????????????????????????? | | ???## ### "#????????????????????????????? | | ##??## ####?## ""#????????????????????????????? | | #???#####?????##[ "#####????????????????????????? | | ##??????????##### " #????????????????????????? | | #??????????## ##????????????????????????? | | ???????????# ####?????????????????????????? | | ??????????## ##????????????????????????????? | | ?????????## ##?????????????????????????????? | | ????????## ####??????????????????????????????? | | ????????# ##????????????????????????????????? | | ????????# ##???????????????????????????????? | | ???????## ####????????????????????????????? | | ???????# | ##???????????????????????????? | | ???????# ###?????????????????????????? | | ???????###### ##????????????????????????? | | ????????????# # ##???????????????????????? | | ????????????# #####| #???????????????????????? | | ????????????## ##??# ###?????????????????????? | | ????????????# ##?# ??????##??????????????? | | ????????????# ### ?????? #??????????????? | | ????????????## ## #????? ???????????????? | | ??????????#### ## ##??? #????????????????? | | ?????????## ## @#??# #?????????????????? | | ?????????# R### #??????????????????? | | ?????????# ## R #??????????????????? | | ?????????### ?# ## #??????????????????? | | ??????????# ##?# # #??????????????????? | | ??????????##???### # ### #?????????????????? | | ??????????????????## ##?? #?????????????????? | | ???????????????????## #??? #?????????????????? | | ????????????????????## #??? #?????????????????? | | ?????????????????????###???? #????????????????? | | ???????????????????????????? #????????????????? | | ???????????????????????????? #????????????????? | | ????????????????????????????## #????????????????? | | ??????????????????????????????# ????????????????? | | ??????????????????????????????? ???????????????? | | ???????????????????????????????? ???????????????? | | ???????????????????????????????? #??????????????? | | ????????????????????????????????? ???????????????? | | ?????????????????????????????????????????????????? | | ?????????????????????????????????????????????????? | | ?????????????????????????????????????????????????? | | ?????????????????????????????????????????????????? | | #????????????????????????????????????????????????? | | #????????????????????????????????????????????????? | | #????????????????????????????????????????????????? | +----------------------------------------------------+ Best States ------------- Heat Dissipation 25 Energy Generation 15 Energy Capacity 250 Matter Stores 300 Matter Capacity 300 Sight Range 16 Terrain Scan Density 10 Armor Coverage 800 Power Shielding 33 Evasion (%) 50 Recoil Reduction 2 Item Schematics ----------------- None Robot Schematics ------------------ None Fabricated ------------ Nothing Alien Tech Used ----------------- None Achievements -------------- None Challenges ------------ None Game ------ Seed KineticSwordMaul Manual? 0 Play Time 00:18:29 Cumulative 45.1 hours Start 2024.04.25 @ 17:50:27 End 2024.04.25 @ 18:07:19 Sessions 1 Manual Loads 0 Difficulty Rogue Special Mode None Game No. 78 Rogue 73 Adventurer 5 Explorer 0 Win Type - Total 0 Types 0/0/0/0/0/0/0/0/0 Lore% 13 Gallery% 49 Achievement% 30 Wizard Run 0 Options --------- Layout 0 ASCII 0 Keyboard 0 Movement Mouse Keybinds 0 Fullscreen 1 Font 24/Smallcaps Map View 76x50 Zoom Use 18% Tactical HUD 1 Map Filters NONE Filters NONE Steam 1 RUN: 320be5cb-59b5-42ae-86d0-25321e70b77d